fUSD/lending_fUSD_20260622
["ID","MTS","AMOUNT","RATE_DAILY","PERIOD"]
[426003059,1782103839000,-1665.20829235,0.000179,2]
[426003060,1782103839000,-10149.08930578,0.000179,2]
[426003062,1782103839000,-1532.71520666,0.00018,2]
[426003061,1782103839000,-621.99,0.00017999,2]
[426003063,1782103839000,-204.4,0.00018,2]
[426003065,1782103839000,-350.0,0.00018,2]
[426003064,1782103839000,-266.72310749,0.00018,2]
[426003066,1782103839000,-157.0,0.0001805,2]
[426003068,1782103839000,-150.0,0.0001809,2]
[426003070,1782103839000,-250.0,0.0001809,2]
[426003069,1782103839000,-150.104,0.0001809,2]
[426003074,1782103839000,-150.564,0.0001809,2]
[426003067,1782103839000,-178.0,0.0001805,2]
[426003073,1782103839000,-151.0,0.0001809,2]
[426003072,1782103839000,-167.838,0.0001809,2]
[426003071,1782103839000,-250.0,0.0001809,2]
[426003076,1782103839000,-10149.08930578,0.000181,2]
[426003075,1782103839000,-1665.20829235,0.000181,2]
[426003078,1782103839000,-154.0,0.00018148,2]
[426003077,1782103839000,-194.99652364,0.00018127,2]
[426003081,1782103839000,-204.4,0.000182,2]
[426003080,1782103839000,-1532.71520666,0.000182,2]
[426003082,1782103839000,-266.72310749,0.000182,2]
[426003021,1782103839000,-853.04717104,0.00016438,2]
[426003056,1782103839000,-151.662075,0.000178,2]
[426003052,1782103839000,-151.0,0.00017799,2]
[426003079,1782103839000,-156.0,0.00018148,2]
[426003053,1782103839000,-151.0,0.00017799,2]
[426003023,1782103839000,-853.04717104,0.00016438,2]
[426003054,1782103839000,-1665.20829235,0.000178,2]
[426003022,1782103839000,-853.04717104,0.00016438,2]
[426003027,1782103839000,-151.0,0.00016438,2]
[426003026,1782103839000,-853.04717102,0.00016438,2]
[426003028,1782103839000,-151.00000071,0.00016438,2]
[426003030,1782103839000,-26891.11,0.00016474,2]
[426003029,1782103839000,-151.000011,0.00016438,2]
[426003034,1782103839000,-3575.609,0.00016875,2]
[426003036,1782103839000,-1282.418,0.00016875,2]
[426003033,1782103839000,-162.38,0.00016612,2]
[426003035,1782103839000,-385.0,0.00016875,2]
[426003031,1782103839000,-1410.0,0.00016502,5]
[426003032,1782103839000,-1500.0,0.00016585,2]
[426003024,1782103839000,-853.04717104,0.00016438,2]
[426003038,1782103839000,-1234.989,0.00016875,2]
[426003041,1782103839000,-155.156708,0.00016875,2]
[426003040,1782103839000,-1079.033,0.00016875,2]
[426003039,1782103839000,-3648.0,0.00016875,2]
[426003043,1782103839000,-605.16,0.00017,2]
[426003047,1782103839000,-156.0,0.00017148,2]
[426003046,1782103839000,-154.0,0.00017148,2]
[426003049,1782103839000,-151.0,0.00017586,2]
[426003050,1782103839000,-348.33,0.00017638,2]
[426003045,1782103839000,-1555.5,0.00017133,2]
[426003042,1782103839000,-8785.57153296,0.0001699,2]
[426003048,1782103839000,-170.1,0.00017392,2]
[426003051,1782103839000,-1613.0535,0.00017681,2]
[426003037,1782103839000,-1366.418,0.00016875,2]
[426003084,1782103840000,-1095.09054319,0.00018229,2]
[426003087,1782103840000,-350.0,0.00018229,2]
[426003109,1782103841000,-422.89223244,0.00017586,2]
[426003107,1782103841000,-1501.07,0.00017586,2]
[426003117,1782103846000,-2221.68299906,0.00017586,2]
[426003116,1782103846000,-223.834,0.00016995,2]
[426003126,1782104067000,1076.81,0.00030137,120]
[426003191,1782105032000,-500.0,0.00013259,2]
[426003188,1782105032000,-500.0,0.00013259,2]
[426003187,1782105032000,-500.0,0.00013259,2]
[426003189,1782105032000,-500.0,0.00013259,2]
[426003190,1782105032000,-500.0,0.00013259,2]
[426003193,1782105032000,-500.0,0.00013259,2]
[426003192,1782105032000,-500.0,0.00013259,2]
[426003194,1782105032000,-500.0,0.00013259,2]
[426003204,1782105032000,-215.1867005,0.00013259,2]
[426003200,1782105032000,-500.0,0.00013259,2]
[426003199,1782105032000,-500.0,0.00013259,2]
[426003196,1782105032000,-500.0,0.00013259,2]
[426003197,1782105032000,-500.0,0.00013259,2]
[426003198,1782105032000,-500.0,0.00013259,2]
[426003202,1782105032000,-500.0,0.00013259,2]
[426003203,1782105032000,-284.8132995,0.00013259,2]
[426003184,1782105032000,-181.50894596,0.00013259,2]
[426003201,1782105032000,-500.0,0.00013259,2]
[426003195,1782105032000,-500.0,0.00013259,2]
[426003183,1782105032000,-318.49105404,0.00013259,2]
[426003164,1782105032000,-150.0,0.00012285,2]
[426003186,1782105032000,-500.0,0.00013259,2]
[426003206,1782105032000,-500.0,0.00013259,2]
[426003166,1782105032000,-300.0,0.00012937,2]
[426003168,1782105032000,-151.0,0.00012938,2]
[426003172,1782105032000,-152.0,0.00012938,2]
[426003169,1782105032000,-152.0,0.00012938,2]
[426003165,1782105032000,-231.13625,0.00012665,2]
[426003171,1782105032000,-110.18711691,0.00012938,2]
[426003174,1782105032000,-151.0,0.00012938,2]
[426003173,1782105032000,-151.0,0.00012938,2]
[426003175,1782105032000,-151.0,0.00012938,2]
[426003167,1782105032000,-151.0,0.00012938,2]
[426003170,1782105032000,-39.81288309,0.00012938,2]
[426003176,1782105032000,-151.0,0.00012938,2]
[426003178,1782105032000,-152.0,0.00012938,2]
[426003177,1782105032000,-150.0,0.00012938,2]
[426003179,1782105032000,-500.0,0.00013258,2]
[426003181,1782105032000,-440.0,0.00013258,2]
[426003180,1782105032000,-500.0,0.00013258,2]
[426003182,1782105032000,-150.0,0.00013258,2]
[426003185,1782105032000,-191.96137821,0.00013259,2]
[426003208,1782105032000,-500.0,0.00013259,2]
[426003233,1782105032000,-500.0,0.00013259,2]
[426003207,1782105032000,-500.0,0.00013259,2]
[426003237,1782105032000,-500.0,0.00013259,2]
[426003241,1782105032000,-500.0,0.00013259,2]
[426003239,1782105032000,-500.0,0.00013259,2]
[426003256,1782105032000,-500.0,0.00013259,2]
[426003252,1782105032000,-500.0,0.00013259,2]
[426003254,1782105032000,-501.50632243,0.00013259,2]
[426003261,1782105032000,-500.0,0.00013259,2]
[426003263,1782105032000,-500.0,0.00013259,2]
[426003268,1782105032000,-500.0,0.00013259,2]
[426003266,1782105032000,-500.0,0.00013259,2]
[426003269,1782105032000,-500.0,0.00013259,2]
[426003205,1782105032000,-500.0,0.00013259,2]
[426003259,1782105032000,-500.0,0.00013259,2]
[426003271,1782105032000,-500.0,0.00013259,2]
[426003274,1782105032000,-500.0,0.00013259,2]
[426003279,1782105032000,-500.0,0.00013259,2]
[426003276,1782105032000,-500.0,0.00013259,2]
[426003281,1782105032000,-267.98666527,0.00013259,2]
[426003283,1782105032000,-500.0,0.00013259,2]
[426003247,1782105032000,-500.0,0.00013259,2]
[426003249,1782105032000,-500.0,0.00013259,2]
[426003272,1782105032000,-500.0,0.00013259,2]
[426003235,1782105032000,-500.0,0.00013259,2]
[426003246,1782105032000,-500.0,0.00013259,2]
[426003210,1782105032000,-500.0,0.00013259,2]
[426003209,1782105032000,-500.0,0.00013259,2]
[426003211,1782105032000,-500.0,0.00013259,2]
[426003214,1782105032000,-500.0,0.00013259,2]
[426003215,1782105032000,-500.0,0.00013259,2]
[426003212,1782105032000,-500.0,0.00013259,2]
[426003217,1782105032000,-500.0,0.00013259,2]
[426003219,1782105032000,-500.0,0.00013259,2]
[426003213,1782105032000,-500.0,0.00013259,2]
[426003218,1782105032000,-500.0,0.00013259,2]
[426003221,1782105032000,-500.0,0.00013259,2]
[426003224,1782105032000,-98.28989727,0.00013259,2]
[426003222,1782105032000,-401.71010273,0.00013259,2]
[426003220,1782105032000,-500.0,0.00013259,2]
[426003226,1782105032000,-500.0,0.00013259,2]
[426003230,1782105032000,-500.0,0.00013259,2]
[426003228,1782105032000,-500.0,0.00013259,2]
[426003216,1782105032000,-500.0,0.00013259,2]
[426003243,1782105032000,-500.0,0.00013259,2]
[426003305,1782105033000,-546.46353822,0.00013931,2]
[426003303,1782105033000,-223.53280216,0.00013931,2]
[426003306,1782105033000,-184.30617063,0.00013931,2]
[426003304,1782105033000,-500.0,0.00013931,2]
[426003307,1782105033000,-500.0,0.00013931,2]
[426003312,1782105033000,-210.84124237,0.00014163,2]
[426003309,1782105033000,-184.13,0.00013933,2]
[426003311,1782105033000,-158.0,0.00014137,2]
[426003313,1782105033000,-536.95,0.00014272,2]
[426003314,1782105033000,-255.0,0.00014371,2]
[426003301,1782105033000,-555.5395817,0.00013788,2]
[426003308,1782105033000,-240.14039441,0.00013931,2]
[426003299,1782105033000,-612.45243712,0.00013641,2]
[426003287,1782105033000,-500.0,0.00013259,2]
[426003302,1782105033000,-500.0,0.00013931,2]
[426003298,1782105033000,-166.66,0.00013559,2]
[426003296,1782105033000,-204.07029485,0.00013514,2]
[426003294,1782105033000,-160.0,0.00013278,2]
[426003295,1782105033000,-250.0,0.00013514,2]
[426003297,1782105033000,-250.0,0.00013514,2]
[426003293,1782105033000,-151.0,0.0001326,2]
[426003289,1782105033000,-500.0,0.00013259,2]
[426003285,1782105033000,-500.0,0.00013259,2]
[426003292,1782105033000,-500.0,0.00013259,2]
[426003291,1782105033000,-500.0,0.00013259,2]
[426003310,1782105033000,-158.0,0.00014125,2]
[426003300,1782105033000,-285.05513885,0.0001366,2]
[426003315,1782105033000,-9374.4181,0.00014404,2]
[426003329,1782105033000,-72.12077082,0.000149,2]
[426003316,1782105033000,-150.99,0.00014504,2]
[426003317,1782105033000,-9999.99,0.00014504,2]
[426003345,1782105033000,-1668.97568377,0.00015,2]
[426003342,1782105033000,-424.4678178,0.00015,2]
[426003343,1782105033000,-792.77143306,0.00015,2]
[426003339,1782105033000,-16845.72296031,0.00015,2]
[426003341,1782105033000,-450.53195804,0.00015,2]
[426003340,1782105033000,-587.65122063,0.00015,2]
[426003338,1782105033000,-1801.3306573,0.00015,2]
[426003337,1782105033000,-2927.46466822,0.00015,2]
[426003333,1782105033000,-166.66,0.00014986,2]
[426003336,1782105033000,-1477.02291702,0.00015,2]
[426003334,1782105033000,-500.0,0.00014999,2]
[426003332,1782105033000,-1748.13039674,0.000149,2]
[426003335,1782105033000,-16886.12013653,0.00015,2]
[426003330,1782105033000,-1254.41808677,0.000149,2]
[426003318,1782105033000,-299.99,0.00014504,2]
[426003321,1782105033000,-637.38252702,0.0001459,2]
[426003331,1782105033000,-9107.24877529,0.000149,2]
[426003319,1782105033000,-9999.99,0.00014504,2]
[426003322,1782105033000,-151.0,0.00014787,2]
[426003327,1782105033000,-279.8509739,0.000149,2]
[426003320,1782105033000,-8063.64,0.00014504,2]
[426003325,1782105033000,-2183.10614531,0.00014824,2]
[426003323,1782105033000,-256.76793637,0.00014787,2]
[426003326,1782105033000,-1191.5039909,0.000149,2]
[426003324,1782105033000,-2309.242,0.000148,2]
[426003344,1782105033000,-40722.8473437,0.00015,2]
[426003328,1782105033000,-2500.0,0.000149,2]
[426003354,1782105038000,-703.79086909,0.00015,2]
[426003353,1782105038000,-870.6563623,0.00015,2]
[426003365,1782105040000,-6281.35739424,0.00015,2]
[426003358,1782105040000,-23677.39449411,0.00015,2]
[426003361,1782105040000,-596.298,0.00015,2]
[426003359,1782105040000,-8113.4813717,0.00015,2]
[426003360,1782105040000,-153486.51214937,0.00015,2]
[426003362,1782105040000,-296.54876387,0.00015,2]
[426003364,1782105040000,-1524.41745895,0.00015,2]
[426003367,1782105040000,-634.313,0.00015,2]
[426003363,1782105040000,-7375.00000001,0.00015,2]
[426003368,1782105040000,-155.559837,0.00015,2]
[426003371,1782105040000,-151.0,0.00015068,2]
[426003373,1782105040000,-573.27,0.00015167,2]
[426003376,1782105040000,-150.0,0.00015483,2]
[426003372,1782105040000,-163.45840096,0.00015083,2]
[426003370,1782105040000,-315.0,0.00015,2]
[426003374,1782105040000,-151.0,0.00015206,2]
[426003375,1782105040000,-150.10760602,0.00015427,2]
[426003377,1782105040000,-10000.0,0.000155,2]
[426003369,1782105040000,-151.0,0.00015,2]
[426003378,1782105041000,-313.0,0.00015527,2]
[426003380,1782105041000,-433.0,0.00015578,2]
[426003379,1782105041000,-309.0,0.00015527,2]
[426003385,1782105041000,-87.33147546,0.00016308,2]
[426003383,1782105041000,-316.0,0.000162,2]
[426003384,1782105041000,-184.13,0.00016255,2]
[426003382,1782105041000,-1195.31630045,0.00016195,2]
[426003449,1782105046000,-775.83679369,0.00015,2]
[426004144,1782105429000,5391.9,0.00030137,120]
[426004145,1782105507000,9811.61,0.0001,2]
[426004146,1782105507000,10000.0,0.0001,2]
[426004149,1782105507000,10000.0,0.0001,2]
[426004147,1782105507000,10000.0,0.0001,2]
[426004152,1782105507000,4163.52,0.0001,2]
[426004150,1782105507000,10000.0,0.0001,2]
[426004151,1782105507000,10000.0,0.0001,2]
[426004148,1782105507000,10000.0,0.0001,2]
[426004156,1782105980000,-500.0,0.00012997,2]
[426004157,1782105980000,-500.0,0.00012997,2]
[426004158,1782105980000,-500.0,0.00012997,2]
[426004159,1782105980000,-500.0,0.00012997,2]
[426004161,1782105980000,-444.15063224,0.00012997,2]
[426004162,1782105980000,-328.64488038,0.00012999,2]
[426004163,1782105980000,-151.0,0.00012999,2]
[426004160,1782105980000,-500.0,0.00012997,2]
[426004170,1782105981000,-150.0,0.00012999,2]
[426004172,1782105981000,-151.0,0.00012999,2]
[426004171,1782105981000,-151.0,0.00012999,2]
[426004173,1782105981000,-151.0,0.00012999,2]
[426004169,1782105981000,-151.0,0.00012999,2]
[426004176,1782105981000,-152.0,0.00012999,2]
[426004166,1782105981000,-152.0,0.00012999,2]
[426004167,1782105981000,-151.0,0.00012999,2]
[426004165,1782105981000,-151.0,0.00012999,2]
[426004164,1782105981000,-152.0,0.00012999,2]
[426004168,1782105981000,-153.0,0.00012999,2]
[426004175,1782105981000,-150.0,0.00012999,2]
[426004174,1782105981000,-152.0,0.00012999,2]
[426004178,1782105981000,-152.0,0.00012999,2]
[426004190,1782105981000,-3420.82448738,0.00014243,2]
[426004189,1782105981000,-150.0,0.00014242,2]
[426004187,1782105981000,-320.0,0.00014,2]
[426004184,1782105981000,-4126.52,0.00013536,2]
[426004183,1782105981000,-249.58,0.00013356,2]
[426004185,1782105981000,-152.74,0.00013704,2]
[426004177,1782105981000,-150.0,0.00012999,2]
[426004182,1782105981000,-200.54,0.00013315,2]
[426004179,1782105981000,-152.0,0.00012999,2]
[426004180,1782105981000,-151.0,0.00012999,2]
[426004188,1782105981000,-250.0,0.00014,2]
[426004181,1782105981000,-150.0,0.00013,2]
[426004186,1782105981000,-150.0,0.00013852,2]
[426004192,1782106003000,-40.96498687,0.00012654,2]
[426004191,1782106003000,-151.0,0.00012654,2]
[426004220,1782106232000,-276.37,0.00013503,2]
[426004222,1782106232000,-166.66,0.00013615,2]
[426004223,1782106232000,-293.84,0.00013699,2]
[426004221,1782106232000,-810.06,0.00013602,2]
[426004224,1782106232000,-244.56,0.00013699,2]
[426004227,1782106232000,-849.18,0.00013699,2]
[426004231,1782106232000,-600.0,0.00013919,2]
[426004230,1782106232000,-600.0,0.00013919,2]
[426004228,1782106232000,-200.0,0.00013699,2]
[426004232,1782106232000,-600.0,0.00013919,2]
[426004234,1782106232000,-600.0,0.00013919,2]
[426004233,1782106232000,-600.0,0.00013919,2]
[426004219,1782106232000,-7126.17,0.00013503,2]
[426004229,1782106232000,-166.66,0.00013884,2]
[426004218,1782106232000,-150.0,0.00013502,2]
[426004211,1782106232000,-938.2792234,0.00013259,2]
[426004216,1782106232000,-1494.66,0.00013294,2]
[426004205,1782106232000,-230.9345875,0.00012654,2]
[426004206,1782106232000,-166.66,0.00012806,2]
[426004204,1782106232000,-110.03501313,0.00012654,2]
[426004208,1782106232000,-207.51664937,0.00013258,2]
[426004207,1782106232000,-166.66,0.00013075,2]
[426004209,1782106232000,-119.61119866,0.00013258,2]
[426004225,1782106232000,-203.8,0.00013699,2]
[426004210,1782106232000,-2154.60159533,0.00013259,2]
[426004213,1782106232000,-2222.60728768,0.00013259,2]
[426004236,1782106232000,-300.0,0.00013919,2]
[426004214,1782106232000,-2547.95412992,0.00013259,2]
[426004215,1782106232000,-810.06,0.0001327,2]
[426004217,1782106232000,-166.66,0.00013345,2]
[426004226,1782106232000,-169.83,0.00013699,2]
[426004212,1782106232000,-4729.27826936,0.00013259,2]
[426004235,1782106232000,-300.0,0.00013919,2]
[426004244,1782106232000,-166.66,0.00014154,2]
[426004237,1782106232000,-300.0,0.00013919,2]
[426004270,1782106232000,-1000.0,0.00014342,2]
[426004268,1782106232000,-150.0,0.00014341,2]
[426004264,1782106232000,-317.0,0.00014341,2]
[426004269,1782106232000,-314.0,0.00014341,2]
[426004261,1782106232000,-11646.78722661,0.00014245,2]
[426004260,1782106232000,-309.0,0.00014243,2]
[426004263,1782106232000,-193.42285252,0.00014297,2]
[426004258,1782106232000,-321.0,0.00014243,2]
[426004262,1782106232000,-810.06,0.00014265,2]
[426004259,1782106232000,-152.0,0.00014243,2]
[426004238,1782106232000,-300.0,0.00013919,2]
[426004267,1782106232000,-314.0,0.00014341,2]
[426004265,1782106232000,-151.0,0.00014341,2]
[426004257,1782106232000,-321.0,0.00014243,2]
[426004254,1782106232000,-320.0,0.00014242,2]
[426004266,1782106232000,-310.0,0.00014341,2]
[426004253,1782106232000,-309.0,0.00014242,2]
[426004239,1782106232000,-300.0,0.00013919,2]
[426004255,1782106232000,-9398.20306103,0.00014243,2]
[426004242,1782106232000,-300.15048095,0.00013919,2]
[426004241,1782106232000,-250.0,0.00013919,2]
[426004245,1782106232000,-500.0,0.00014242,2]
[426004243,1782106232000,-810.06,0.00013933,2]
[426004246,1782106232000,-500.0,0.00014242,2]
[426004240,1782106232000,-150.18266749,0.00013919,2]
[426004247,1782106232000,-500.0,0.00014242,2]
[426004249,1782106232000,-199.95057983,0.00014242,2]
[426004250,1782106232000,-272.04079609,0.00014242,2]
[426004251,1782106232000,-500.0,0.00014242,2]
[426004252,1782106232000,-316.71203823,0.00014242,2]
[426004256,1782106232000,-1195.07193787,0.00014243,2]
[426004248,1782106232000,-158.01827524,0.00014242,2]
[426004278,1782106233000,-320.0,0.00014342,2]
[426004281,1782106233000,-318.0,0.00014342,2]
[426004280,1782106233000,-151.0,0.00014342,2]
[426004274,1782106233000,-319.0,0.00014342,2]
[426004273,1782106233000,-150.0,0.00014342,2]
[426004275,1782106233000,-319.0,0.00014342,2]
[426004272,1782106233000,-502.56753259,0.00014342,2]
[426004271,1782106233000,-500.0,0.00014342,2]
[426004279,1782106233000,-317.0,0.00014342,2]
[426004276,1782106233000,-317.0,0.00014342,2]
[426004282,1782106233000,-316.0,0.00014342,2]
[426004277,1782106233000,-151.0,0.00014342,2]
[426004285,1782106233000,-317.0,0.00014342,2]
[426004292,1782106233000,-2693.25346171,0.00014343,2]
[426004293,1782106233000,-28501.48329994,0.00014343,2]
[426004290,1782106233000,-500.0,0.00014342,2]
[426004288,1782106233000,-312.0,0.00014342,2]
[426004294,1782106233000,-66297.23635686,0.00014343,2]
[426004283,1782106233000,-320.0,0.00014342,2]
[426004291,1782106233000,-5142.4520051,0.00014343,2]
[426004284,1782106233000,-150.0,0.00014342,2]
[426004286,1782106233000,-314.0,0.00014342,2]
[426004287,1782106233000,-152.0,0.00014342,2]
[426004289,1782106233000,-318.0,0.00014342,2]
[426004296,1782106238000,-3797.19080027,0.00014343,2]
[426004299,1782106238000,-22399.38,0.00014343,2]
[426004298,1782106238000,-2836.51714815,0.00014343,2]
[426004297,1782106238000,-265.712551,0.00014343,2]
[426004301,1782106238000,-327.56973821,0.00014343,2]
[426004304,1782106238000,-705.39,0.00014343,2]
[426004316,1782106238000,-1798.77700831,0.00014343,2]
[426004313,1782106238000,-142951.18636161,0.00014343,2]
[426004308,1782106238000,-7364.47663824,0.00014343,2]
[426004295,1782106238000,-7448.4412364,0.00014343,2]
[426004306,1782106238000,-1410.0,0.00014343,2]
[426004311,1782106238000,-2142.31612176,0.00014343,2]
[426004475,1782106240000,-385.69951495,0.00014343,2]
[426004476,1782106241000,-292.805257,0.00014343,2]
[426004492,1782106241000,-309.0,0.00014343,2]
[426004497,1782106241000,-321.0,0.00014402,2]
[426004500,1782106241000,-151.0,0.00014404,2]
[426004494,1782106241000,-312.0,0.00014345,2]
[426004493,1782106241000,-315.0,0.00014345,2]
[426004489,1782106241000,-312.0,0.00014343,2]
[426004490,1782106241000,-315.0,0.00014343,2]
[426004488,1782106241000,-151.0,0.00014343,2]
[426004485,1782106241000,-314.0,0.00014343,2]
[426004487,1782106241000,-320.0,0.00014343,2]
[426004484,1782106241000,-151.0,0.00014343,2]
[426004486,1782106241000,-321.0,0.00014343,2]
[426004483,1782106241000,-317.0,0.00014343,2]
[426004481,1782106241000,-151.0,0.00014343,2]
[426004477,1782106241000,-15355.38634155,0.00014343,2]
[426004479,1782106241000,-150.0,0.00014343,2]
[426004480,1782106241000,-309.0,0.00014343,2]
[426004482,1782106241000,-317.0,0.00014343,2]
[426004478,1782106241000,-150.0,0.00014343,2]
[426004498,1782106241000,-316.0,0.00014402,2]
[426004491,1782106241000,-314.0,0.00014343,2]
[426004499,1782106241000,-311.0,0.00014404,2]
[426004496,1782106241000,-150.0,0.00014372,2]
[426004520,1782106241000,-500.0,0.00014899,2]
[426004517,1782106241000,-500.0,0.00014899,2]
[426004518,1782106241000,-500.0,0.00014899,2]
[426004519,1782106241000,-500.0,0.00014899,2]
[426004516,1782106241000,-300.0,0.00014899,2]
[426004515,1782106241000,-300.0,0.00014899,2]
[426004514,1782106241000,-190.53862374,0.0001489,2]
[426004509,1782106241000,-500.0,0.00014772,2]
[426004501,1782106241000,-311.0,0.00014404,2]
[426004504,1782106241000,-255.0,0.00014609,2]
[426004511,1782106241000,-612.07589292,0.000148,2]
[426004506,1782106241000,-164.06,0.00014748,2]
[426004510,1782106241000,-149843.98461019,0.00014772,2]
[426004513,1782106241000,-820.36379545,0.00014887,2]
[426004512,1782106241000,-1900.0,0.000148,5]
[426004521,1782106241000,-65948.19323977,0.000149,2]
[426004508,1782106241000,-300.0,0.00014771,2]
[426004505,1782106241000,-900.0,0.000147,5]
[426004503,1782106241000,-810.06,0.00014597,2]
[426004502,1782106241000,-317.0,0.00014404,2]
[426004495,1782106241000,-316.0,0.00014355,2]
[426004507,1782106241000,-300.0,0.00014771,2]
[426004528,1782106243000,-108.38162696,0.00014616,2]
[426004527,1782106243000,-197.77249989,0.00014342,2]
[426004526,1782106243000,-302.22750011,0.00014342,2]
[426004525,1782106243000,-321.0,0.00014242,2]
[426004574,1782106246000,-4381.18735615,0.000149,2]
[426004572,1782106246000,-337.16103082,0.00014616,2]
[426004575,1782106246000,-2390.74944503,0.000149,2]
[426004576,1782106246000,-576.78979225,0.000149,2]
[426004573,1782106246000,-444.95161303,0.000148,2]
[426004613,1782107205000,264.0,0.00030136,120]
[426004614,1782107255000,1153.0,0.00011,6]
[426004615,1782107368000,159.66,0.0003,120]
[426004637,1782107431000,-151.0,0.00013258,2]
[426004646,1782107431000,-152.0,0.00013599,2]
[426004638,1782107431000,-151.0,0.00013258,2]
[426004633,1782107431000,-151.0,0.00013258,2]
[426004635,1782107431000,-153.0,0.00013258,2]
[426004643,1782107431000,-173.24479151,0.00013531,2]
[426004642,1782107431000,-166.66,0.00013507,2]
[426004650,1782107431000,-250.0,0.00014,2]
[426004652,1782107431000,-200.0,0.00014045,2]
[426004651,1782107431000,-222.8498928,0.00014037,7]
[426004641,1782107431000,-13008.59590026,0.00013499,2]
[426004634,1782107431000,-151.0,0.00013258,2]
[426004639,1782107431000,-1852.42,0.00013273,2]
[426004636,1782107431000,-152.0,0.00013258,2]
[426004632,1782107431000,-151.0,0.00013258,2]
[426004631,1782107431000,-151.0,0.00013258,2]
[426004628,1782107431000,-222.8498928,0.00013257,7]
[426004630,1782107431000,-150.0,0.00013258,2]
[426004629,1782107431000,-152.0,0.00013258,2]
[426004626,1782107431000,-20490.4598928,0.00013251,2]
[426004627,1782107431000,-239.93360873,0.00013257,7]
[426004624,1782107431000,-47.8498928,0.00012997,7]
[426004625,1782107431000,-3163.3501072,0.00013251,2]
[426004622,1782107431000,-249.0,0.00012914,2]
[426004623,1782107431000,-175.0,0.00012997,7]
[426004640,1782107431000,-150.0,0.00013498,2]
[426004648,1782107431000,-222.8498928,0.00013647,7]
[426004658,1782107431000,-200.0,0.00014114,2]
[426004647,1782107431000,-150.0,0.00013599,2]
[426004683,1782107431000,-600.0,0.00014206,2]
[426004681,1782107431000,-600.0,0.00014206,2]
[426004682,1782107431000,-600.0,0.00014206,2]
[426004678,1782107431000,-16.8022399,0.00014206,2]
[426004680,1782107431000,-600.0,0.00014206,2]
[426004679,1782107431000,-583.1977601,0.00014206,2]
[426004675,1782107431000,-316.0,0.00014145,2]
[426004645,1782107431000,-150.0,0.00013599,2]
[426004673,1782107431000,-152.0,0.00014145,2]
[426004676,1782107431000,-314.0,0.00014145,2]
[426004674,1782107431000,-310.0,0.00014145,2]
[426004671,1782107431000,-312.0,0.00014145,2]
[426004672,1782107431000,-310.0,0.00014145,2]
[426004677,1782107431000,-181.35,0.00014155,2]
[426004670,1782107431000,-150.0,0.00014145,2]
[426004669,1782107431000,-318.0,0.00014145,2]
[426004649,1782107431000,-166.66,0.00013792,2]
[426004644,1782107431000,-153.0,0.00013598,2]
[426004653,1782107431000,-1120.99,0.00014062,2]
[426004655,1782107431000,-200.73,0.0001411,2]
[426004654,1782107431000,-166.66,0.00014076,2]
[426004663,1782107431000,-200.81968937,0.00014114,2]
[426004656,1782107431000,-200.0,0.00014114,2]
[426004661,1782107431000,-200.0,0.00014114,2]